bitfinex-derivatives/quotes_BNBF0:USTF0_20250315
["timestamp","ask_amount","ask_price","bid_price","bid_amount"]
[1742082553730,2.84662774,619.88,618.54,0.89758018]
[1742082553934,3.97502199,619.95,618.55,0.89758018]
[1742082554237,3.97502199,619.94,618.56,0.89758018]
[1742082554430,3.97502199,619.93,618.57,0.89758018]
[1742082554634,3.97502199,619.92,618.58,0.89758018]
[1742082554835,3.97502199,619.91,618.59,0.89689769]
[1742082555036,3.97502199,619.9,618.42,2.896]
[1742082555241,3.97502199,619.89,618.43,0.89674743]
[1742082555431,3.97502199,619.88,618.44,0.89674743]
[1742082555630,6.82164973,619.87,618.45,0.89674743]
[1742082555835,2.84662774,619.87,618.46,0.8969878]
[1742082556135,2.84662774,619.87,618.47,0.8969878]
[1742082556335,2.84662774,619.87,618.48,0.8969878]
[1742082556538,2.84662774,619.87,618.49,0.8969878]
[1742082556735,2.84662774,619.87,618.5,0.8969878]
[1742082556938,6.82164973,619.87,618.51,0.8969878]
[1742082557140,3.97502199,619.86,618.52,0.8969878]
[1742082557340,3.97502199,619.85,618.53,0.8969878]
[1742082557639,2.84662774,619.86,618.42,2.896]
[1742082557840,2.46609351,619.8,618.43,0.89703783]
[1742082558034,2.46609351,619.8,618.44,0.89703783]
[1742082558234,2.46609351,619.8,618.45,0.89703783]
[1742082558434,2.46609351,619.8,618.46,0.89703783]
[1742082558638,2.46609351,619.8,618.47,0.89703783]
[1742082558839,2.46609351,619.8,618.48,0.89703783]
[1742082559139,2.46609351,619.8,618.49,0.89703783]
[1742082559340,2.46609351,619.8,618.5,0.89703783]
[1742082559542,2.46609351,619.8,618.51,0.89703783]
[1742082559738,2.46609351,619.8,618.52,0.89703783]
[1742082559935,2.46609351,619.8,618.53,0.89703783]
[1742082560140,3.97638248,620.07,618.54,0.89703783]
[1742082560338,3.97638248,620.06,618.42,2.896]
[1742082560534,3.97638248,620.05,618.43,0.89731382]
[1742082560739,3.97638248,620.04,618.44,0.89731382]
[1742082560941,3.97638248,620.03,618.45,0.89731382]
[1742082561134,2.84662774,620.05,618.46,0.89731382]
[1742082561436,2.84662774,620.05,618.47,0.89731382]
[1742082561641,2.84662774,620.05,618.48,0.89731382]
[1742082561834,2.84662774,620.05,618.49,0.89731382]
[1742082562040,2.84662774,620.05,618.5,0.89731382]
[1742082562237,2.84662774,620.19,618.51,0.89731382]
[1742082562540,2.84662774,620.19,618.52,0.89731382]
[1742082562739,6.82342452,620.19,618.53,0.89731382]
[1742082562940,3.97679678,620.18,618.54,0.89731382]
[1742082563135,3.97679678,620.17,618.55,0.89731382]
[1742082563338,3.97679678,620.17,618.42,2.896]
[1742082563339,3.97679678,620.16,618.56,0.89731382]
[1742082563539,6.82342452,620.15,618.57,0.89731382]
[1742082563740,3.97679678,620.14,618.42,2.896]
[1742082563937,2.84662774,620.15,618.43,0.89759248]
[1742082564135,2.84662774,620.15,618.44,0.89759248]
[1742082564335,2.84662774,620.15,618.45,0.89759248]
[1742082564640,2.84662774,620.15,618.46,0.89759248]
[1742082564835,2.84662774,620.15,618.47,0.89759248]
[1742082565039,3.97679678,620.18,618.48,0.89759248]
[1742082565341,3.97679678,620.17,618.49,0.89759248]
[1742082565542,3.97679678,620.16,618.5,0.89759248]
[1742082565741,3.97679678,620.16,618.42,2.896]
[1742082565742,3.97679678,620.15,618.51,0.89759248]
[1742082565943,3.97679678,620.14,618.52,0.89759248]
[1742082566141,3.97679678,620.13,618.53,0.89759248]
[1742082566338,3.97679678,620.12,618.54,0.89759248]
[1742082566541,6.82342452,620.11,618.55,0.89759248]
[1742082566743,3.97679678,620.1,618.56,0.89759248]
[1742082566944,3.97679678,620.09,618.57,0.89759248]
[1742082567145,3.97679678,620.08,618.58,0.89759248]
[1742082567337,3.97679678,620.07,618.42,2.896]
[1742082567541,3.97679678,620.06,618.43,0.89782883]
[1742082567746,3.97679678,620.05,618.44,0.89782883]
[1742082567940,2.84662774,620.11,618.45,0.89782883]
[1742082568142,2.84662774,620.11,618.46,0.89782883]
[1742082568338,6.82342452,620.15,618.47,0.89782883]
[1742082568542,3.97679678,620.14,618.48,0.89782883]
[1742082568741,3.97679678,620.13,618.49,0.89782883]
[1742082568942,3.97679678,620.12,618.5,0.89782883]
[1742082569247,3.97679678,620.11,618.51,0.89782883]
[1742082569447,3.97679678,620.1,618.52,0.89782883]
[1742082569746,3.97679678,620.09,618.53,0.89782883]
[1742082569946,2.84662774,620.15,618.54,0.89784868]
[1742082570144,2.46609351,619.94,618.55,0.89784868]
[1742082570342,2.46609351,619.94,618.56,0.89784868]
[1742082570545,2.46609351,619.94,618.57,0.89784868]
[1742082570744,2.46609351,619.94,618.58,0.89784868]
[1742082570946,2.46609351,619.94,618.42,2.896]
[1742082571147,2.46609351,619.94,618.43,0.89789107]
[1742082571344,2.46609351,619.94,618.44,0.89789107]
[1742082571545,2.46609351,619.94,618.45,0.89789107]
[1742082571850,2.46609351,619.94,618.46,0.89789107]
[1742082572053,2.46609351,619.94,618.47,0.89789107]
[1742082572254,2.46609351,619.94,618.48,0.89789107]
[1742082572454,2.46609351,619.94,618.49,0.89789107]
[1742082572651,2.46609351,619.94,618.5,0.89789107]
[1742082572855,2.46609351,619.94,618.51,0.89789107]
[1742082573056,2.46609351,619.94,618.52,0.89789107]
[1742082573249,2.46609351,619.94,618.53,0.89789107]
[1742082573449,2.46609351,619.94,618.54,0.89789107]
[1742082573653,2.46609351,619.94,618.55,0.89789107]
[1742082573851,2.46609351,619.94,618.42,2.896]
[1742082574051,2.46609351,619.94,618.43,0.89789664]
[1742082574357,2.84662774,620.15,618.44,0.89789664]
[1742082574358,2.46609351,619.8,618.44,0.89789664]
[1742082574659,2.46609351,619.8,618.45,0.89789664]
[1742082574858,2.46609351,619.8,618.46,0.89789664]
[1742082575059,2.46609351,619.8,618.47,0.89789664]
[1742082575258,2.46609351,619.8,618.42,2.896]
[1742082575456,2.46609351,619.8,618.43,0.89835688]
[1742082575656,2.46609351,619.8,618.44,0.89835688]
[1742082575956,2.46609351,619.8,618.45,0.89835688]
[1742082576149,2.46609351,619.8,618.46,0.89835688]
[1742082576349,2.46609351,619.8,618.42,2.896]
[1742082576553,2.46609351,619.74,618.43,0.8981522]
[1742082576754,2.46609351,619.74,618.44,0.8981522]
[1742082576951,2.46609351,619.74,618.42,2.896]
[1742082578851,2.46609351,619.65,618.42,2.896]
[1742082580957,2.46609351,619.88,618.42,2.896]
[1742082582459,5.31272125,619.88,618.42,2.896]
[1742082582754,6.44289029,619.87,618.42,2.896]
[1742082584262,2.84662774,619.86,618.42,2.896]
[1742082584460,6.82342452,619.86,618.42,2.896]
[1742082584662,3.97679678,619.85,618.42,2.896]
[1742082584862,3.97679678,619.84,618.42,2.896]
[1742082585163,3.97679678,619.83,618.42,2.896]
[1742082585365,3.97679678,619.82,618.42,2.896]
[1742082585556,3.97679678,619.81,618.42,2.896]
[1742082585761,3.97679678,619.8,618.42,2.896]
[1742082585957,3.97679678,619.79,618.42,2.896]
[1742082586163,3.97679678,619.78,618.42,2.896]
[1742082586361,3.97679678,619.77,618.42,2.896]
[1742082586564,3.97679678,619.76,618.42,2.896]
[1742082586766,3.97679678,619.75,618.42,2.896]
[1742082586967,3.97679678,619.74,618.42,2.896]
[1742082587263,3.97679678,619.73,618.42,2.896]
[1742082587467,3.97679678,619.72,618.42,2.896]
[1742082587669,3.97679678,619.71,618.42,2.896]
[1742082587866,3.97679678,619.7,618.42,2.896]
[1742082588066,3.97679678,619.69,618.42,2.896]
[1742082588268,2.84662774,619.74,618.42,2.896]
[1742082588871,2.84662774,619.92,618.42,2.896]
[1742082589273,5.31272125,619.92,618.42,2.896]
[1742082589572,3.97085301,619.91,618.42,2.896]
[1742082590568,2.84662774,619.9,618.42,2.896]
[1742082591366,2.46609351,619.78,618.42,2.896]
[1742082594671,3.97085301,619.85,618.42,2.896]
[1742082594672,2.46609351,619.79,618.42,2.896]
[1742082597076,2.84662774,619.82,618.42,2.896]
[1742082598376,2.84662774,619.98,618.42,2.896]
[1742082599575,6.81452193,619.98,618.42,2.896]
[1742082599775,3.96789419,619.97,618.42,2.896]
[1742082599975,3.96789419,619.96,618.42,2.896]
[1742082600177,3.96789419,619.95,618.42,2.896]
[1742082600376,3.96789419,619.94,618.42,2.896]
[1742082600573,3.96789419,619.93,618.42,2.896]
[1742082600876,2.84662774,619.97,618.42,2.896]
[1742082601878,2.46609351,620.04,618.42,2.896]
[1742082602280,2.46609351,620.01,618.42,2.896]
[1742082604380,2.84662774,620.31,618.42,2.896]
[1742082606082,2.46609351,620.54,618.42,2.896]
[1742082607682,2.46609351,620.53,618.42,2.896]
[1742082608482,6.43391598,620.53,618.42,2.896]
[1742082609282,2.84662774,620.52,618.42,2.896]
[1742082609483,6.81445021,620.52,618.43,0.89652842]
[1742082609685,6.81445021,620.52,618.42,2.896]
[1742082609686,2.46609351,620.51,618.42,2.896]
[1742082609883,6.43391598,620.51,618.43,0.89653915]
[1742082610084,6.43391598,620.51,618.42,2.896]
[1742082610279,6.43391598,620.51,618.43,0.89653878]
[1742082610479,6.43391598,620.51,618.42,2.896]
[1742082610785,6.43391598,620.51,618.43,0.89663968]
[1742082610986,6.43391598,620.51,618.42,2.896]
[1742082611281,2.84662774,620.5,618.43,0.89663615]
[1742082611486,2.84662774,620.5,618.42,2.896]
[1742082611487,6.81445021,620.5,618.42,2.896]
[1742082611687,6.81445021,620.5,618.43,0.89671311]
[1742082611987,6.81445021,620.5,618.44,0.8966339]
[1742082612187,6.81445021,620.5,618.45,0.8966339]
[1742082612387,6.81445021,620.5,618.46,0.8966339]
[1742082612588,2.84662774,620.49,618.47,0.8966339]
[1742082612888,2.84662774,620.49,618.48,0.8966339]
[1742082612889,2.46609351,620.05,618.48,0.8966339]
[1742082613088,2.46609351,620.05,618.49,0.8966339]
[1742082613289,2.46609351,620.05,618.5,0.8966339]
[1742082613483,2.46609351,620.05,618.51,0.8966339]
[1742082613687,2.46609351,620.05,618.52,0.8966339]
[1742082613989,2.46609351,620.05,618.42,2.896]
[1742082614288,2.46609351,620.05,618.43,0.89647789]
[1742082614488,2.46609351,620.05,618.44,0.89647789]
[1742082614688,2.46609351,620.05,618.45,0.89647789]
[1742082614889,2.46609351,619.8,618.46,0.89647789]
[1742082615087,2.46609351,619.8,618.42,2.896]
[1742082615288,2.46609351,619.8,618.43,0.89650859]
[1742082615483,2.46609351,619.8,618.44,0.89650859]
[1742082615683,2.46609351,619.8,618.45,0.89650859]
[1742082615887,2.46609351,619.8,618.46,0.89650859]
[1742082616090,2.46609351,619.8,618.47,0.89650859]
[1742082616284,2.46609351,619.8,618.48,0.89650859]
[1742082616484,2.46609351,619.8,618.49,0.89650859]
[1742082616789,2.46609351,619.8,618.5,0.89650859]
[1742082616990,2.46609351,619.8,618.51,0.89650859]
[1742082617188,2.46609351,619.8,618.42,2.896]
[1742082617386,2.46609351,619.8,618.43,0.89624037]
[1742082617591,2.46609351,619.87,618.44,0.89624037]
[1742082617890,2.46609351,619.87,618.42,2.896]
[1742082618091,2.46609351,619.87,618.43,0.8961567]
[1742082618295,2.46609351,619.87,618.44,0.8961567]
[1742082618594,2.46609351,619.87,618.45,0.8961567]
[1742082618792,2.46609351,619.87,618.46,0.8961567]
[1742082619091,2.46609351,619.87,618.47,0.8961567]
[1742082619291,2.46609351,619.87,618.48,0.8961567]
[1742082619486,2.46609351,619.87,618.49,0.8961567]
[1742082619685,2.46609351,619.87,618.5,0.8961567]
[1742082619991,2.46609351,619.87,618.51,0.8961567]
[1742082620193,2.46609351,619.87,618.42,2.896]
[1742082620386,2.46609351,619.87,618.43,0.89610224]
[1742082620590,2.46609351,619.87,618.44,0.89610224]
[1742082620890,2.46609351,619.87,618.45,0.89610224]
[1742082621090,2.46609351,619.87,618.46,0.89610224]
[1742082621286,2.46609351,619.87,618.47,0.89610224]
[1742082621490,2.46609351,619.87,618.48,0.89610224]
[1742082621690,3.96782247,620.0,618.49,0.89610224]
[1742082621691,2.46609351,619.88,618.49,0.89610224]
[1742082621890,2.46609351,619.88,618.5,0.89610224]
[1742082622089,2.46609351,619.88,618.51,0.89610224]
[1742082622287,2.46609351,619.88,618.52,0.89585043]
[1742082622490,2.46609351,619.88,618.42,2.896]
[1742082622687,2.46609351,619.88,618.43,0.8958317]
[1742082622891,2.46609351,619.88,618.44,0.8958317]
[1742082623092,2.46609351,619.88,618.45,0.8958317]
[1742082623294,2.46609351,619.88,618.46,0.8958317]
[1742082623492,2.46609351,619.88,618.47,0.8958317]
[1742082623792,2.46609351,619.88,618.48,0.8958317]
[1742082623993,2.46609351,619.88,618.49,0.89589645]
[1742082624194,2.46609351,619.88,618.5,0.89589645]
[1742082624489,2.46609351,619.88,618.51,0.89589645]
[1742082624694,2.46609351,619.88,618.52,0.89589645]
[1742082624995,3.96782247,619.96,618.42,2.896]
[1742082625196,3.96782247,619.95,618.43,0.89587765]
[1742082625495,3.96782247,619.94,618.44,0.89587765]
[1742082625696,3.96782247,619.93,618.45,0.89587765]
[1742082625897,2.84662774,619.97,618.42,2.896]
[1742082626099,2.84662774,619.97,618.43,0.89591831]
[1742082626397,2.84662774,620.07,618.44,0.89591831]
[1742082626591,2.84662774,620.07,618.45,0.89591831]
[1742082626790,2.84662774,620.07,618.46,0.89591831]
[1742082626993,2.84662774,620.07,618.47,0.89591831]
[1742082627193,2.84662774,620.07,618.48,0.89591831]
[1742082627393,5.31272125,620.07,618.49,0.89591831]
[1742082627597,3.96782247,620.06,618.5,0.89591831]
[1742082627794,3.96782247,620.06,618.51,0.89591831]
[1742082627996,3.96782247,620.06,618.52,0.89591831]
[1742082628199,2.84662774,620.05,618.53,0.89591831]
[1742082628401,2.84662774,620.05,618.54,0.89591831]
[1742082628702,2.84662774,620.05,618.55,0.89591831]
[1742082628906,2.84662774,620.05,618.42,2.896]
[1742082629106,2.84662774,620.05,618.43,0.89574103]
[1742082629302,2.84662774,620.05,618.44,0.89574103]
[1742082629499,2.84662774,620.05,618.45,0.89574103]
[1742082629701,2.84662774,620.05,618.46,0.89574103]
[1742082630007,2.84662774,620.05,618.47,0.89566664]
[1742082630207,2.84662774,620.05,618.48,0.89566664]
[1742082630407,2.84662774,620.11,618.49,0.89566664]
[1742082630608,2.84662774,620.11,618.5,0.89566664]
[1742082630808,2.84662774,620.11,618.51,0.89566664]
[1742082631108,2.46609351,620.1,618.52,0.89566664]
[1742082631408,2.46609351,620.1,618.53,0.89566664]
[1742082631601,2.46609351,620.1,618.42,2.896]
[1742082631602,6.43391598,620.1,618.54,0.89566664]
[1742082631805,9.28054372,620.1,618.55,0.89566664]
[1742082632008,3.96782247,620.09,618.42,2.896]
[1742082632203,3.96782247,620.09,618.43,0.89562499]
[1742082632405,3.96782247,620.09,618.44,0.89562499]
[1742082632708,3.96782247,620.09,618.45,0.89562499]
[1742082632903,3.96782247,620.09,618.46,0.89562499]
[1742082633101,3.96782247,620.09,618.47,0.89562499]
[1742082633309,2.84662774,620.08,618.48,0.89562499]
[1742082633510,2.84662774,620.08,618.49,0.89562499]
[1742082633705,2.84662774,620.08,618.5,0.89562499]
[1742082633909,2.46609351,620.05,618.51,0.89562499]
[1742082634108,2.46609351,620.05,618.52,0.89562499]
[1742082634303,2.46609351,620.05,618.42,2.896]
[1742082634610,2.46609351,620.05,618.43,0.89553845]
[1742082634805,2.46609351,620.05,618.44,0.89553845]
[1742082635013,6.43391598,620.05,618.45,0.89553845]
[1742082635211,6.43391598,620.05,618.46,0.89553845]
[1742082635413,6.43391598,620.05,618.47,0.89553845]
[1742082635712,6.43391598,620.05,618.48,0.89553845]
[1742082635913,2.84662774,620.04,618.49,0.89553845]
[1742082636211,6.81445021,620.04,618.5,0.89553845]
[1742082636412,6.81445021,620.04,618.51,0.89553845]
[1742082636606,2.46609351,619.99,618.52,0.89553845]
[1742082636810,2.46609351,619.99,618.42,2.896]
[1742082637112,2.46609351,619.99,618.43,0.89545973]
[1742082637407,2.46609351,619.99,618.44,0.89545973]
[1742082637611,2.46609351,619.99,618.45,0.89545973]
[1742082637811,2.46609351,619.99,618.46,0.89545973]
[1742082638012,2.46609351,619.99,618.47,0.89545973]
[1742082638213,2.46609351,619.8,618.48,0.89545973]
[1742082638410,2.46609351,619.8,618.49,0.89545973]
[1742082638607,2.46609351,619.8,618.5,0.89545973]
[1742082638808,2.46609351,619.8,618.51,0.89545973]
[1742082639015,2.46609351,619.8,618.42,2.896]
[1742082639213,2.46609351,619.8,618.43,0.89557458]
[1742082639513,2.46609351,619.8,618.44,0.89557458]
[1742082639718,2.46609351,619.8,618.45,0.89557458]
[1742082639917,2.46609351,619.8,618.46,0.89557458]
[1742082640114,2.46609351,619.8,618.47,0.89557458]
[1742082640314,2.46609351,619.8,618.48,0.89557458]
[1742082640615,2.46609351,619.68,618.49,0.89557458]
[1742082640815,2.46609351,619.68,618.5,0.89557458]
[1742082641018,2.46609351,619.68,618.42,2.896]
[1742082641215,2.46609351,619.68,618.43,0.89563824]
[1742082641414,2.46609351,619.68,618.44,0.89563824]
[1742082641615,2.46609351,619.68,618.45,0.89563824]
[1742082641811,2.46609351,619.68,618.46,0.89563824]
[1742082642015,2.46609351,619.68,618.47,0.89563824]
[1742082642212,2.46609351,619.68,618.48,0.89563824]
[1742082642415,3.96782247,619.89,618.49,0.89563824]
[1742082642416,2.46609351,619.65,618.49,0.89563824]
[1742082642611,2.46609351,619.65,618.5,0.89563824]
[1742082642810,2.46609351,619.65,618.51,0.89563824]
[1742082643016,2.46609351,619.65,618.42,2.896]
[1742082643216,2.46609351,619.65,618.43,0.89572806]
[1742082643412,2.46609351,619.65,618.44,0.89572806]
[1742082643616,2.46609351,619.65,618.45,0.89572806]
[1742082643817,2.46609351,619.65,618.46,0.89572806]
[1742082644019,2.46609351,619.65,618.47,0.89572806]
[1742082644219,2.46609351,619.65,618.48,0.89572806]
[1742082644417,2.46609351,619.65,618.49,0.89572806]
[1742082644612,2.46609351,619.65,618.5,0.89572806]
[1742082644812,2.46609351,619.64,618.51,0.89572806]
[1742082645017,2.46609351,619.64,618.42,2.896]
[1742082645217,2.46609351,619.64,618.43,0.89584557]
[1742082645420,2.46609351,619.64,618.44,0.89584557]
[1742082645614,2.46609351,619.64,618.45,0.89584557]
[1742082645821,2.46609351,619.64,618.46,0.89584557]
[1742082646119,2.46609351,619.64,618.47,0.89591557]
[1742082646321,2.46609351,619.64,618.48,0.89591557]
[1742082646519,2.46609351,619.64,618.49,0.89591557]
[1742082646722,2.46609351,619.64,618.5,0.89591557]
[1742082646921,2.46609351,619.64,618.51,0.89591557]
[1742082647124,2.46609351,619.6,618.52,0.89591557]
[1742082647323,2.46609351,619.6,618.53,0.89591557]
[1742082647524,2.46609351,619.6,618.42,2.896]
[1742082647726,2.46609351,619.6,618.43,0.89611818]
[1742082647924,2.46609351,619.6,618.44,0.89611818]
[1742082648119,2.46609351,619.6,618.45,0.89610339]
[1742082648325,2.46609351,619.6,618.46,0.89610339]
[1742082648526,2.46609351,619.6,618.47,0.89610339]
[1742082648727,2.46609351,619.6,618.42,2.896]
[1742082648728,2.46609351,619.64,618.48,0.89610339]
[1742082648927,2.46609351,619.64,618.49,0.89610339]
[1742082649227,2.46609351,619.64,618.5,0.89610339]
[1742082649423,2.46609351,619.64,618.51,0.89610339]
[1742082649622,2.46609351,619.64,618.42,2.896]
[1742082649623,2.46609351,619.64,618.52,0.89610339]
[1742082649824,2.46609351,619.64,618.53,0.89610339]
[1742082650029,2.46609351,619.64,618.54,0.89610339]
[1742082650225,2.46609351,619.64,618.42,2.896]
[1742082650531,2.46609351,619.68,618.43,0.89627813]
[1742082650730,2.46609351,619.68,618.44,0.89627813]
[1742082650928,2.46609351,619.68,618.45,0.89627813]
[1742082651125,2.46609351,619.68,618.46,0.89627813]
[1742082651430,2.46609351,619.68,618.47,0.89627813]
[1742082651630,2.46609351,619.68,618.48,0.89627813]
[1742082651826,2.46609351,619.68,618.49,0.89627813]
[1742082652025,2.46609351,619.68,618.5,0.89627813]
[1742082652226,2.46609351,619.68,618.51,0.89627813]
[1742082652430,2.46609351,619.68,618.52,0.89627813]
[1742082652631,2.46609351,620.18,618.53,0.89627813]
[1742082652832,2.46609351,620.18,618.54,0.89627813]
[1742082653032,2.46609351,620.18,618.55,0.89627813]
[1742082653231,2.46609351,620.18,618.56,0.89627813]
[1742082653432,2.46609351,620.18,618.57,0.89627813]
[1742082653630,2.46609351,620.18,618.58,0.89627813]
[1742082653831,2.46609351,620.18,618.59,0.89627813]
[1742082654032,2.46609351,620.18,618.6,0.89627813]
[1742082654334,2.46609351,620.18,618.61,0.89674217]
[1742082654530,2.46609351,620.18,618.42,2.896]
[1742082654733,2.46609351,620.18,618.43,0.89672563]
[1742082654933,2.46609351,620.18,618.44,0.89672563]
[1742082655229,2.46609351,620.18,618.45,0.89672563]
[1742082655432,2.46609351,620.24,618.46,0.89672563]
[1742082655632,2.46609351,620.24,618.47,0.89672563]
[1742082655832,2.46609351,620.24,618.48,0.89672563]
[1742082656027,2.46609351,620.24,618.49,0.89709713]
[1742082656235,2.46609351,620.24,618.5,0.89709713]
[1742082656434,2.46609351,620.24,618.51,0.89709713]
[1742082656630,2.46609351,620.24,618.52,0.89709713]
[1742082656931,2.46609351,620.24,618.53,0.89709713]
[1742082657130,2.46609351,620.35,618.54,0.89709713]
[1742082657334,2.46609351,620.35,618.55,0.89709713]
[1742082657536,2.46609351,620.35,618.56,0.89709713]
[1742082657738,2.46609351,620.35,618.57,0.89709713]
[1742082658039,2.46609351,620.35,618.58,0.89709713]
[1742082658236,2.46609351,620.35,618.59,0.89709713]
[1742082658439,2.46609351,620.35,618.6,0.89709713]
[1742082658638,2.46609351,620.35,618.42,2.896]
[1742082658841,2.46609351,620.37,618.43,0.89709341]
[1742082659138,2.46609351,620.37,618.44,0.89709341]
[1742082659338,2.46609351,620.37,618.45,0.89709341]
[1742082659539,2.46609351,620.37,618.46,0.89709341]
[1742082659733,2.46609351,620.37,618.47,0.89709341]
[1742082659932,2.46609351,620.37,618.42,2.896]
[1742082659933,2.46609351,620.37,618.48,0.89709341]
[1742082660136,2.46609351,620.37,618.49,0.89709341]
[1742082660334,2.46609351,620.37,618.5,0.89709341]
[1742082660537,2.46609351,620.37,618.51,0.89709341]
[1742082660740,2.46609351,620.39,618.52,0.89709341]
[1742082660940,2.46609351,620.39,618.53,0.89709341]
[1742082661139,2.46609351,620.39,618.54,0.89709341]
[1742082661340,2.46609351,620.39,618.55,0.89709341]
[1742082661541,2.46609351,620.39,618.56,0.89709341]
[1742082661743,2.46609351,620.39,618.57,0.89709341]
[1742082662053,2.46609351,620.39,618.58,0.89709341]
[1742082662237,2.46609351,620.39,618.59,0.89709341]
[1742082662441,2.46609351,620.39,618.6,0.89709341]
[1742082662638,2.46609351,620.39,618.61,0.89709341]
[1742082662943,2.46609351,620.39,618.42,2.896]
[1742082663146,2.46609351,620.34,618.43,0.89689203]
[1742082663344,2.46609351,620.34,618.44,0.89689203]
[1742082663643,2.46609351,620.34,618.42,2.896]
[1742082663644,2.46609351,620.34,618.45,0.89689203]
[1742082663844,2.46609351,620.34,618.46,0.89689203]
[1742082664046,2.46609351,620.34,618.47,0.89689203]
[1742082664240,2.46609351,620.34,618.48,0.89689203]
[1742082664438,2.46609351,620.25,618.49,0.89689203]
[1742082664642,2.46609351,620.25,618.5,0.89689203]
[1742082664839,2.46609351,620.25,618.51,0.89689203]
[1742082665040,2.46609351,620.25,618.52,0.89689203]
[1742082665245,2.46609351,620.25,618.53,0.89720333]
[1742082665440,2.46609351,620.25,618.54,0.89720333]
[1742082665641,2.46609351,620.25,618.55,0.89720333]
[1742082665946,2.46609351,620.25,618.56,0.89720333]
[1742082666146,2.46609351,620.25,618.57,0.89720333]
[1742082666345,2.46609351,620.25,618.58,0.89720333]
[1742082666545,2.46609351,620.25,618.59,0.89720333]
[1742082666847,2.46609351,620.25,618.42,2.896]
[1742082666848,2.46609351,620.25,618.6,0.89720333]
[1742082667146,2.46609351,619.96,618.61,0.89720333]
[1742082667342,2.46609351,619.96,618.42,2.896]
[1742082667546,2.46609351,619.96,618.43,0.8974927]
[1742082667746,2.46609351,619.96,618.44,0.8974927]
[1742082668046,2.46609351,619.96,618.45,0.8974927]
[1742082668247,2.46609351,619.96,618.46,0.8974927]
[1742082668546,3.97155985,620.27,618.47,0.8974927]
[1742082668547,2.46609351,619.93,618.47,0.8974927]
[1742082668747,2.46609351,619.93,618.48,0.8974927]
[1742082668946,2.46609351,619.93,618.49,0.8974927]
[1742082669146,2.46609351,619.93,618.5,0.8974927]
[1742082669343,2.46609351,619.93,618.51,0.8974927]
[1742082669549,2.46609351,619.93,618.52,0.8974927]
[1742082669747,2.46609351,619.93,618.53,0.8974927]
[1742082669948,2.46609351,619.93,618.54,0.8974927]
[1742082670144,2.46609351,619.93,618.55,0.8974927]
[1742082670344,2.46609351,619.93,618.56,0.8974927]
[1742082670548,2.46609351,620.01,618.57,0.8974927]
[1742082670744,2.46609351,620.01,618.58,0.8974927]
[1742082670944,2.46609351,620.01,618.59,0.8974927]
[1742082671142,2.46609351,620.01,618.42,1.508]
[1742082671347,2.46609351,620.01,618.43,0.89804263]
[1742082671647,2.46609351,620.01,618.44,0.89804263]
[1742082671849,2.46609351,620.01,618.45,0.89804263]
[1742082672050,2.46609351,620.01,618.46,0.89804263]
[1742082672350,2.46609351,620.01,618.47,0.89804263]
[1742082672545,2.46609351,620.01,618.48,0.89804263]
[1742082672747,2.46609351,620.01,618.42,0.808]
[1742082672748,2.46609351,620.0,618.49,0.89804263]
[1742082672948,2.46609351,620.0,618.5,0.89804263]
[1742082673145,2.46609351,620.0,618.51,0.89804263]
[1742082673349,2.46609351,620.0,618.52,0.89804263]
[1742082673549,2.46609351,620.0,618.53,0.89804263]
[1742082673750,2.46609351,620.0,618.54,0.89804263]
[1742082674050,2.46609351,620.0,617.96,0.28120644]
[1742082674245,2.46609351,620.0,617.97,1.22215674]
[1742082674447,2.46609351,620.01,617.98,1.2221515]
[1742082674649,2.46609351,620.01,617.99,1.22214627]
[1742082674853,2.46609351,620.01,618.0,0.89851644]
[1742082675154,2.46609351,620.01,618.01,0.89851644]
[1742082675351,2.46609351,620.01,617.99,0.32362983]
[1742082675552,2.46609351,620.01,618.02,0.89808842]
[1742082675747,2.46609351,620.01,617.99,0.32362983]
[1742082675949,2.46609351,620.01,618.0,0.8981503]
[1742082676146,2.46609351,620.01,617.99,0.32362983]
[1742082677254,2.46609351,620.01,618.0,0.89812656]
[1742082677453,2.46609351,620.01,618.01,0.89812656]
[1742082677652,2.46609351,620.01,618.02,0.89812656]
[1742082677847,2.46609351,620.01,618.03,0.89812656]
[1742082678054,2.46609351,620.01,618.04,0.89812656]
[1742082678246,2.46609351,620.01,618.05,0.89812656]
[1742082678450,2.46609351,620.01,618.06,0.89812656]
[1742082678654,3.97155985,620.13,617.99,0.32362983]
[1742082678655,2.46609351,620.05,618.07,0.89812656]
[1742082678848,2.46609351,620.05,618.08,0.89812656]
[1742082679052,2.46609351,620.05,618.09,0.89812656]
[1742082679250,2.46609351,620.05,618.1,0.89812656]
[1742082679455,2.46609351,620.05,618.11,0.89812656]
[1742082679755,2.46609351,620.05,618.12,0.89812656]
[1742082679957,2.46609351,620.05,618.13,0.89812656]
[1742082680151,2.46609351,620.05,618.14,0.89812656]
[1742082680351,2.46609351,620.05,618.15,0.89812656]
[1742082680561,2.46609351,619.95,618.16,0.89812656]